{"text_format":"1","workbook":"xlsx","n_sheets":4,"sheets":["初回打合せ","実施状況報告","集計","リスト"],"not_rendered":{"charts":0,"images":0,"macros":1,"external_links":0,"defined_names":2,"comments":0,"pivot_tables":0},"unopened":[],"bounds":{"document_bytes":16777216,"sheet_cells":100000,"rows_first":2000,"rows_last":500,"rows_between":2000,"halvings":0,"cell_chars":16384,"cell_head_chars":4096},"cells_cut":0,"cells_raw":0,"read":"whole","date_system":"1900"}

{"sheet":"初回打合せ","index":0,"n_rows":69,"n_cols":27,"rows_kept":69,"cut":false,"hidden":false,"merged":[[61,5,61,6],[56,5,56,6],[49,5,49,6],[11,6,11,14],[3,19,3,21],[18,3,18,26],[21,6,21,14],[23,3,23,26],[26,6,26,14],[28,3,28,26],[43,10,43,25],[31,6,31,14],[33,3,33,26],[36,6,36,14],[41,6,41,14],[38,3,38,26],[3,22,3,26],[13,3,13,26],[16,6,16,14],[8,6,8,14],[8,16,8,26],[7,2,7,5],[5,2,5,5],[6,2,6,5],[8,2,8,5],[4,2,4,5],[4,6,4,26],[7,6,7,26],[5,6,5,26],[6,6,6,26]]}
[null,{"$f":"\"【\"&G5&\"】\"&\"_\"&G6&\"_\"&G7&\"(\"&G8&\"）\"","v":"【水災害・リスクマネジメント国際センター（ICHARM）　水災害研究グループ】_土木系建設コンサルタント業務_〇〇調査業務(△△コンサルタンツ）"}]
[null,null,null,null,null,null,null,null,null,null,null,null,null,null,null,null,null,null,null,null,null,null,null,null,null,null,"土木研究所"]
[null,null,"業務環境改善様式【初回打合せ用】"]
[null,null,"[基本情報]",null,null,null,null,null,null,null,null,null,null,null,null,null,null,null,null,"記入日：",null,null,"2022-06-01"]
[null,null,"発注研究室名",null,null,null,"水災害・リスクマネジメント国際センター（ICHARM）　水災害研究グループ"]
[null,null,"業務区分",null,null,null,"土木系建設コンサルタント業務"]
[null,null,"業務件名",null,null,null,"〇〇調査業務"]
[null,null,"受注者名",null,null,null,"△△コンサルタンツ"]
[null,null,"履行期間",null,null,null,"2022-05-25",null,null,null,null,null,null,null,null,"～","2022-12-20"]
[]
[null,{"$f":"IF(G12=\"実施する\",\"OK！\",IF(G12=\"対象外\",IF(D14=\"\",\"確認！\",\"OK！\")))","v":"OK！"},"①",{"$f":"リスト!D13","v":"月曜日を依頼の期限日としない（マンデー・ノーピリオド）"}]
[null,null,{"$f":"IF(B11=\"OK！\",\"\",\"確認！\")","v":""},"取り組み　：",null,null,"実施する"]
[null,null,null,"対象外とした理由　："]
[]
[]
[null,{"$f":"IF(G17=\"実施する\",\"OK！\",IF(G17=\"対象外\",IF(D19=\"\",\"確認！\",\"OK！\")))","v":"OK！"},"②",{"$f":"リスト!D14","v":"水曜日は定時の帰宅に心掛ける（ウェンズデー・ホーム）"}]
[null,null,{"$f":"IF(B16=\"OK！\",\"\",\"確認！\")","v":""},"取り組み　：",null,null,"実施する"]
[null,null,null,"対象外とした理由　："]
[null,null,null,"理由をお書きください。"]
[]
[null,{"$f":"IF(G22=\"実施する\",\"OK！\",IF(G22=\"対象外\",IF(D24=\"\",\"確認！\",\"OK！\")))","v":"OK！"},"③",{"$f":"リスト!D15","v":"土・日曜に休暇が取れるように金曜日には依頼しない（フライデー・ノーリクエスト）"}]
[null,null,{"$f":"IF(B21=\"OK！\",\"\",\"確認！\")","v":""},"取り組み　：",null,null,"実施する"]
[null,null,null,"対象外とした理由　："]
[null,null,null,"理由をお書きください。"]
[]
[null,{"$f":"IF(G27=\"実施する\",\"OK！\",IF(G27=\"対象外\",IF(D29=\"\",\"確認！\",\"OK！\")))","v":"OK！"},"④",{"$f":"リスト!D16","v":"昼休みや午後5時以降の打合せをしない（ランチタイム・オーバーファイブ・ノーミーティング）"}]
[null,null,null,"取り組み　：",null,null,"実施する",null,null,null,null,null,null,null,null,null,null,null,null,null,null,null,null,null,null,{"$f":"IF(B26=\"OK！\",\"\",\"確認！\")","v":""}]
[null,null,null,"対象外とした理由　："]
[null,null,null,"理由をお書きください。"]
[]
[null,{"$f":"IF(G32=\"実施する\",\"OK！\",IF(G32=\"対象外\",IF(D34=\"\",\"確認！\",\"OK！\")))","v":"OK！"},"⑤",{"$f":"リスト!D17","v":"定時間際、定時後の依頼、打合せをしない（イブニング・ノーリクエスト）"}]
[null,null,{"$f":"IF(B31=\"OK！\",\"\",\"確認！\")","v":""},"取り組み　：",null,null,"実施する"]
[null,null,null,"対象外とした理由　："]
[null,null,null,"理由をお書きください。"]
[]
[null,{"$f":"IF(G37=\"実施する\",\"OK！\",IF(G37=\"対象外\",IF(D39=\"\",\"確認！\",\"OK！\")))","v":"OK！"},"⑥",{"$f":"リスト!D18","v":"金曜日も定時の帰宅を心掛ける"}]
[null,null,{"$f":"IF(B36=\"OK！\",\"\",\"確認！\")","v":""},"取り組み　：",null,null,"実施する",null,null,null,null,null,null,null,null,null,null,null,null,null,null,null,null,null,null,{"$f":"IF(B36=\"OK！\",\"\",\"確認！\")","v":""}]
[null,null,null,"対象外とした理由　："]
[null,null,null,"理由をお書きください。"]
[]
[null,{"$f":"IF(G42=\"なし\",\"OK！\",IF(G42=\"あり\",IF(K44=\"\",\"確認！\",\"OK！\")))","v":"OK！"},"⑦",{"$f":"リスト!D19","v":"その他、任意で設定する取組"}]
[null,null,{"$f":"IF(B41=\"OK！\",\"\",\"確認！\")","v":""},"取り組み　　：",null,null,"あり"]
[]
[null,null,null,"ありの場合のその内容：",null,null,null,null,null,null,"定時退庁"]
[]
[]
[null,null,null,"記入要領"]
[null,null,null,null,null,"：必須項目（発注事務所名、業務区分については、リストから選択してください）"]
[null,null,null,null,null,"業務区分については、以下のリストから選択してください。"]
[null,{"$f":"IF($AG$13=2,1,IF($AG$13=1,IF(K37=\"\",3,IF(K39=\"\",3,1))))","v":false},null,null,null,"リスト:",null,"土木系建設コンサルタント業務"]
[null,null,null,null,null,null,null,"測量業務"]
[null,{"$f":"IF(AG2<2,1,IF(AG2>=2,IF(D41=\"\",3,1)))","v":1},null,null,null,null,null,"地質・土質調査業務"]
[null,null,null,null,null,null,null,"発注者支援業務等"]
[]
[]
[null,null,null,null,null,"：必須項目(プルダウンで以下のリストから選択をする）"]
[null,null,null,null,null,"リスト:",null,"実施する"]
[null,null,null,null,null,null,null,"対象外"]
[null,null,null,null,null,"：「対象外」を選択した場合に記入する。記入がない場合、確認！と表示されます。"]
[]
[null,null,null,null,null,"：その他、任意で設定する取り組みがある場合、その実施状況を以下のリストより選択する。"]
[null,null,null,null,null,"リスト:",null,"あり"]
[null,null,null,null,null,null,null,"なし"]
[null,null,null,null,null,"：その他、任意で設定する取り組みがある場合、その内容を記入する。"]
[]
[null,null,null,null,"ファイルの保存にあたっては、以下のようにファイル名を付けて保存してください。"]
[null,null,null,null,null,"【○○研究グループ○○チーム】_業務区分_業務名（受注者名）.xlsm"]
[null,null,null,null,null,"本シートの左上にある　保存　と書いてあるボタンをクリックしてください。"]
[null,null,null,null,null,"セキュリティの警告で、『コンテンツの有効化』を押してから、保存ボタンを押してください。"]

{"sheet":"実施状況報告","index":1,"n_rows":90,"n_cols":35,"rows_kept":90,"cut":false,"hidden":false,"merged":[[4,32,4,33],[55,3,55,26],[8,6,8,14],[8,18,8,27],[50,10,50,19],[17,6,17,14],[22,6,22,14],[27,6,27,14],[32,6,32,14],[37,6,37,14],[8,15,8,17],[8,2,8,5],[42,6,42,14],[7,2,7,5],[12,31,13,31],[4,2,4,5],[79,5,79,6],[15,3,15,11],[60,5,60,6],[48,10,48,26],[7,6,7,27],[10,3,10,27],[11,6,11,14],[12,3,12,15],[67,5,67,6],[46,3,46,8],[46,10,46,19],[34,3,34,27],[39,3,39,27],[44,3,44,27],[52,3,52,27],[13,3,13,27],[3,23,3,27],[3,20,3,22],[19,3,19,27],[24,3,24,27],[29,3,29,27],[6,6,6,27],[5,2,5,5],[5,6,5,27],[6,2,6,5],[4,6,4,27],[3,2,3,3]]}
[null,{"$f":"初回打合せ!B1","v":"【水災害・リスクマネジメント国際センター（ICHARM）　水災害研究グループ】_土木系建設コンサルタント業務_〇〇調査業務(△△コンサルタンツ）"}]
[null,null,null,null,null,null,null,null,null,null,null,null,null,null,null,null,null,null,null,null,null,null,null,null,null,null,null,"土木研究所"]
[null,null,"業務環境改善様式【実施状況報告】"]
[null,null,"[基本情報]",null,null,null,null,null,null,null,null,null,null,null,null,null,null,null,null,null,"記入日：",null,null,"2022-12-28"]
[null,null,"発注事務所名",null,null,null,{"$f":"初回打合せ!G5","v":"水災害・リスクマネジメント国際センター（ICHARM）　水災害研究グループ"},null,null,null,null,null,null,null,null,null,null,null,null,null,null,null,null,null,null,null,null,null,null,null,null,null,"実施状況",null,"対象外の場合の理由"]
[null,null,"業務区分",null,null,null,{"$f":"初回打合せ!G6","v":"土木系建設コンサルタント業務"},null,null,null,null,null,null,null,null,null,null,null,null,null,null,null,null,null,null,null,null,null,null,null,null,"問1",1,{"$f":"VLOOKUP(AG6,リスト!$C$2:$G$6,4,AG6)","v":"あり"},{"$f":"IF(AG6=2,D14,\"－\")","v":"－"}]
[null,null,"業務件名",null,null,null,{"$f":"初回打合せ!G7","v":"〇〇調査業務"},null,null,null,null,null,null,null,null,null,null,null,null,null,null,null,null,null,null,null,null,null,null,null,null,"問2",{"$f":"IF(AH7=リスト!$D$2,1,IF(AH7=リスト!$D$3,2,IF(AH7=リスト!$D$4,3,IF(AH7=リスト!$D$5,4,IF(AH7=リスト!$D$6,5)))))","v":1},{"$f":"G18","v":"実施できた"},{"$f":"IF(AH7=\"実施できた\",\"－\",D20)","v":"－"}]
[null,null,"受注者名",null,null,null,{"$f":"初回打合せ!G8","v":"△△コンサルタンツ"},null,null,null,null,null,null,null,null,null,null,null,null,null,null,null,null,null,null,null,null,null,null,null,null,"問3",{"$f":"IF(AH8=リスト!$D$2,1,IF(AH8=リスト!$D$3,2,IF(AH8=リスト!$D$4,3,IF(AH8=リスト!$D$5,4,IF(AH8=リスト!$D$6,5)))))","v":4},{"$f":"G23","v":"全く実施できなかった"},{"$f":"IF(AH8=\"実施できた\",\"－\",D25)","v":"理由をお書きください。"}]
[null,null,"履行期間",null,null,null,{"$f":"初回打合せ!G9","v":"2022-05-25"},null,null,null,null,null,null,null,null,"～",null,null,{"$f":"初回打合せ!Q9","v":"2022-12-20"},null,null,null,null,null,null,null,null,null,null,null,null,"問4",{"$f":"IF(AH9=リスト!$D$2,1,IF(AH9=リスト!$D$3,2,IF(AH9=リスト!$D$4,3,IF(AH9=リスト!$D$5,4,IF(AH9=リスト!$D$6,5)))))","v":2},{"$f":"G28","v":"どちらかというと実施できた"},{"$f":"IF(AH9=\"実施できた\",\"－\",D30)","v":"理由をお書きください。"}]
[null,null,null,null,null,null,null,null,null,null,null,null,null,null,null,null,null,null,null,null,null,null,null,null,null,null,null,null,null,null,null,"問5",{"$f":"IF(AH10=リスト!$D$2,1,IF(AH10=リスト!$D$3,2,IF(AH10=リスト!$D$4,3,IF(AH10=リスト!$D$5,4,IF(AH10=リスト!$D$6,5)))))","v":2},{"$f":"G33","v":"どちらかというと実施できた"},{"$f":"IF(AH10=\"実施できた\",\"－\",D35)","v":"理由をお書きください。"}]
[null,null,1,"業務環境改善の取組項目の決定にあたり、受注者の要望が反映された項目として合意されていますか？",null,null,null,null,null,null,null,null,null,null,null,null,null,null,null,null,null,null,null,null,null,null,null,null,null,null,null,"問6",{"$f":"IF(AH11=リスト!$D$2,1,IF(AH11=リスト!$D$3,2,IF(AH11=リスト!$D$4,3,IF(AH11=リスト!$D$5,4,IF(AH11=リスト!$D$6,5)))))","v":3},{"$f":"G38","v":"どちらかというと実施できなかった"},{"$f":"IF(AH11=\"実施できた\",\"－\",D40)","v":"理由をお書きください。"}]
[null,null,{"$f":"IF(B21=\"確認！\",\"確認！\",\"\")","v":""},null,null,null,null,null,null,null,null,null,null,null,null,null,null,null,null,null,null,null,null,null,null,null,null,null,null,null,null,"問7",{"$f":"IF(AH12=リスト!$D$2,1,IF(AH12=リスト!$D$3,2,IF(AH12=リスト!$D$4,3,IF(AH12=リスト!$D$5,4,IF(AH12=リスト!$D$6,5)))))","v":2},{"$f":"G43","v":"どちらかというと実施できた"},{"$f":"IF(AH12=\"実施できた\",\"－\",D25)","v":"理由をお書きください。"}]
[null,null,null,"「反映されていない」の場合の理由を以下の枠に記入してください。",null,null,null,null,null,null,null,null,null,null,null,null,null,null,null,null,null,null,null,null,null,null,null,null,null,null,null,"問8",1,{"$f":"VLOOKUP(AG13,リスト!$C$2:$F$6,3,AG13)","v":"実施する"},{"$f":"IF(AH13=\"あり\",K49,\"－\")","v":"－"}]
[null,null,null,null,null,null,null,null,null,null,null,null,null,null,null,null,null,null,null,null,null,null,null,null,null,null,null,null,null,null,null,null,{"$f":"IF(AH14=リスト!$D$2,1,IF(AH14=リスト!$D$3,2,IF(AH14=リスト!$D$4,3,IF(AH14=リスト!$D$5,4,IF(AH14=リスト!$D$6,5)))))","v":2},{"$f":"IF(AG13=1,K51,\"－\")","v":"どちらかというと実施できた"},{"$f":"IF(AG13=2,\"－\",IF(AH14=\"実施できた\",\"－\",D53))","v":"理由をお書きください。"}]
[]
[null,null,null,"項目ごとの実施状況についてお聞きします。"]
[null,null,{"$f":"C11+1","v":2},{"$f":"リスト!D13","v":"月曜日を依頼の期限日としない（マンデー・ノーピリオド）"}]
[null,null,{"$f":"IF(B27=\"確認！\",\"確認！\",\"\")","v":""},"実施状況　：",null,null,"実施できた"]
[null,null,null,"「実施できた」以外を選択した場合、その理由を以下に記入してください。"]
[null,null,null,"理由をお書きください。"]
[null,{"$f":"IF(AG6=1,\"OK！\",IF(AG6=2,IF(D14=\"\",\"確認！\",\"OK！\")))","v":"OK！"}]
[null,null,{"$f":"C17+1","v":3},{"$f":"リスト!D14","v":"水曜日は定時の帰宅に心掛ける（ウェンズデー・ホーム）"}]
[null,null,{"$f":"IF(B32=\"OK！\",\"\",\"確認！\")","v":""},"実施状況　：",null,null,"全く実施できなかった"]
[null,null,null,"「実施できた」以外を選択した場合、その理由を以下に記入してください。"]
[null,null,null,"理由をお書きください。"]
[]
[null,{"$f":"IF(AG7<2,\"OK！\",IF(AG7>=2,IF(D20=\"\",\"確認！\",\"OK！\")))","v":"OK！"},{"$f":"C22+1","v":4},{"$f":"リスト!D15","v":"土・日曜に休暇が取れるように金曜日には依頼しない（フライデー・ノーリクエスト）"}]
[null,null,{"$f":"IF(B37=\"OK！\",\"\",\"確認！\")","v":""},"実施状況　：",null,null,"どちらかというと実施できた"]
[null,null,null,"「実施できた」以外を選択した場合、その理由を以下に記入してください。"]
[null,null,null,"理由をお書きください。"]
[]
[null,{"$f":"IF(AG8<2,\"OK！\",IF(AG8>=2,IF(D25=\"\",\"確認！\",\"OK！\")))","v":"OK！"},{"$f":"C27+1","v":5},{"$f":"リスト!D16","v":"昼休みや午後5時以降の打合せをしない（ランチタイム・オーバーファイブ・ノーミーティング）"}]
[null,null,null,"実施状況　：",null,null,"どちらかというと実施できた",null,null,null,null,null,null,null,null,null,null,null,null,null,null,null,null,null,null,null,{"$f":"IF(B42=\"OK！\",\"\",\"確認！\")","v":""}]
[null,null,null,"「実施できた」以外を選択した場合、その理由を以下に記入してください。"]
[null,null,null,"理由をお書きください。"]
[]
[null,{"$f":"IF(AG9<2,\"OK！\",IF(AG9>=2,IF(D30=\"\",\"確認！\",\"OK！\")))","v":"OK！"},{"$f":"C32+1","v":6},{"$f":"リスト!D17","v":"定時間際、定時後の依頼、打合せをしない（イブニング・ノーリクエスト）"}]
[null,null,{"$f":"IF(B47=\"OK！\",\"\",\"確認！\")","v":""},"実施状況　：",null,null,"どちらかというと実施できなかった"]
[null,null,null,"「実施できた」以外を選択した場合、その理由を以下に記入してください。"]
[null,null,null,"理由をお書きください。"]
[]
[null,{"$f":"IF(AG10<2,\"OK！\",IF(AG10>=2,IF(D35=\"\",\"確認！\",\"OK！\")))","v":"OK！"},{"$f":"C37+1","v":7},{"$f":"リスト!D18","v":"金曜日も定時の帰宅を心掛ける"}]
[null,null,null,"実施状況　：",null,null,"どちらかというと実施できた",null,null,null,null,null,null,null,null,null,null,null,null,null,null,null,null,null,null,null,{"$f":"IF(B52=\"OK！\",\"\",\"確認！\")","v":""}]
[null,null,null,"「実施できた」以外を選択した場合、その理由を以下に記入してください。"]
[null,null,null,"理由をお書きください。"]
[]
[null,{"$f":"IF(AG11<2,\"OK！\",IF(AG11>=2,IF(D40=\"\",\"確認！\",\"OK！\")))","v":"OK！"},{"$f":"C42+1","v":8},{"$f":"リスト!D19","v":"その他、任意で設定する取組"}]
[]
[null,null,{"$f":"IF(AG13=2,\"\",IF(SUM(B61,B63)=2,\"\",\"確認！\"))","v":""},"設定ありの場合のその内容：",null,null,null,null,null,null,{"$f":"初回打合せ!K44","v":"定時退庁"}]
[]
[null,null,null,"実施状況　：",null,null,null,null,null,null,"どちらかというと実施できた"]
[null,{"$f":"IF(AG12<2,\"OK！\",IF(AG12>=2,IF(D45=\"\",\"確認！\",\"OK！\")))","v":"OK！"},null,"「実施できた」以外を選択した場合、その理由を以下に記入してください。"]
[null,null,null,"理由をお書きください。"]
[]
[null,null,{"$f":"C47+1","v":9},"本取組を実施するにあたっての問題点や、今後の改善点などを記入願います。"]
[null,null,null,"記入例\n・関係機関、上部機関との調整不足から、緊急の作業依頼や、夜間での依頼が繰り返された。調整不足の影響を受注者の至急作業で補うことのないよう、事前調整に十分配慮していただきたい。"]
[]
[null,null,null,"記入要領"]
[null,null,null,null,null,"：必須項目（発注事務所名、業務区分については、リストから選択してください）"]
[null,null,null,null,null,"業務区分については、以下のリストから選択してください。"]
[null,{"$f":"IF($AG$13=2,1,IF($AG$13=1,IF(K49=\"\",3,IF(K51=\"\",3,1))))","v":1},null,null,null,"リスト:",null,{"$f":"リスト!H2","v":"土木系建設コンサルタント業務"}]
[null,null,null,null,null,null,null,{"$f":"リスト!H3","v":"測量業務"}]
[null,{"$f":"IF(AG14<2,1,IF(AG14>=2,IF(D53=\"\",3,1)))","v":1},null,null,null,null,null,{"$f":"リスト!H4","v":"地質・土質調査業務"}]
[null,null,null,null,null,null,null,{"$f":"リスト!H5","v":"発注者支援業務等"}]
[]
[]
[null,null,null,null,null,"：必須項目(プルダウンで以下のリストから選択をする）"]
[null,null,null,null,null,"リスト:",null,"実施できた"]
[null,null,null,null,null,null,null,"どちらかというと実施できた"]
[null,null,null,null,null,null,null,"どちらかというと実施できなかった\n"]
[null,null,null,null,null,null,null,"全く実施できなかった"]
[null,null,null,null,null,null,null,"対象外"]
[null,null,null,null,null,"：「実施できた」以外を選択した場合に記入する。記入がない場合、確認！と表示されます。"]
[]
[null,null,null,null,null,"：ラジオボタンで選択する。"]
[]
[null,null,null,null,null,"：その他、任意で設定する取り組みがある場合、その内容を記入する。"]
[]
[null,null,null,null,null,"：その他、任意で設定する取り組みがある場合、その実施状況を以下のリストより選択する。"]
[null,null,null,null,null,"リスト:",null,"実施できた"]
[null,null,null,null,null,null,null,"どちらかというと実施できた"]
[null,null,null,null,null,null,null,"どちらかというと実施できなかった"]
[null,null,null,null,null,null,null,"全く実施できなかった"]
[null,null,null,null,null,"：ご意見などある場合は、記入してください。"]
[]
[null,null,null,null,"ファイルの保存にあたっては、以下のようにファイル名を付けて保存してください。"]
[null,null,null,null,null,"【○○研究グループ○○チーム】_業務区分_業務名（受注者名）.xlsm"]
[null,null,null,null,null,"本シートの左上にある　保存　と書いてあるボタンをクリックしてください。"]
[null,null,null,null,null,"基本情報からファイル名を自動で付けます。"]
[null,null,null,null,null,"セキュリティの警告で、『コンテンツの有効化』を押してから、保存ボタンを押してください。"]

{"sheet":"集計","index":2,"n_rows":4,"n_cols":25,"rows_kept":4,"cut":false,"hidden":false,"merged":[[0,18,0,19],[1,18,1,19],[0,20,0,23],[1,20,1,23],[1,24,2,24],[0,6,0,7],[1,6,1,7],[1,8,1,9],[1,10,1,11],[1,12,1,13],[1,14,1,15],[1,16,1,17],[0,8,0,9],[0,10,0,11],[0,12,0,13],[0,14,0,15],[0,16,0,17],[0,0,2,0],[0,5,2,5],[0,4,2,4],[0,3,2,3],[0,2,2,2],[0,1,2,1]]}
["研究グループ・チーム名","受注者","業務区分","業務件名","履行期間(自)","履行期間(至)","問1",null,"問2",null,"問3",null,"問4",null,"問5",null,"問6",null,"問7",null,"問8",null,null,null,"問9"]
[null,null,null,null,null,null,"受発注者間での合意における問題点",null,"マンデー・ノーピリオド",null,"ウェンズデー・ホーム",null,"フライデー・ノーリクエスト",null,"ランチタイム・オーバーファイブ・ノーミーティング",null,"イブニング・ノーリクエスト",null,"金曜日も定時の帰宅",null,"その他、任意で設定する取組",null,null,null,"問題点や改善点"]
[null,null,null,null,null,null,"受注者の要望","問題点","実施状況","実施できなかった理由","実施状況","実施できなかった理由","実施状況","実施できなかった理由","実施状況","実施できなかった理由","実施状況","実施できなかった理由","実施状況","実施できなかった理由","設定の有無","内容","実施状況","実施できなかった理由"]
[{"$f":"実施状況報告!G5","v":"水災害・リスクマネジメント国際センター（ICHARM）　水災害研究グループ"},{"$f":"実施状況報告!G8","v":"△△コンサルタンツ"},{"$f":"実施状況報告!G6","v":"土木系建設コンサルタント業務"},{"$f":"実施状況報告!G7","v":"〇〇調査業務"},{"$f":"実施状況報告!G9","v":"2022-05-25"},{"$f":"実施状況報告!S9","v":"2022-12-20"},{"$f":"実施状況報告!AH6","v":"あり"},{"$f":"実施状況報告!AI6","v":"－"},{"$f":"実施状況報告!AH7","v":"実施できた"},{"$f":"実施状況報告!AI7","v":"－"},{"$f":"実施状況報告!AH8","v":"全く実施できなかった"},{"$f":"実施状況報告!AI8","v":"理由をお書きください。"},{"$f":"実施状況報告!AH9","v":"どちらかというと実施できた"},{"$f":"実施状況報告!AI9","v":"理由をお書きください。"},{"$f":"実施状況報告!AG5","v":"実施状況"},{"$f":"実施状況報告!AI10","v":"理由をお書きください。"},{"$f":"実施状況報告!AH11","v":"どちらかというと実施できなかった"},{"$f":"実施状況報告!AI11","v":"理由をお書きください。"},{"$f":"実施状況報告!AH12","v":"どちらかというと実施できた"},{"$f":"実施状況報告!AI12","v":"理由をお書きください。"},{"$f":"実施状況報告!AH13","v":"実施する"},{"$f":"IF(U4=\"なし\",\"－\",実施状況報告!AI13)","v":"－"},{"$f":"実施状況報告!AH14","v":"どちらかというと実施できた"},{"$f":"実施状況報告!AI14","v":"理由をお書きください。"},{"$f":"実施状況報告!D56","v":"記入例\n・関係機関、上部機関との調整不足から、緊急の作業依頼や、夜間での依頼が繰り返された。調整不足の影響を受注者の至急作業で補うことのないよう、事前調整に十分配慮していただきたい。"}]

{"sheet":"リスト","index":3,"n_rows":20,"n_cols":9,"rows_kept":20,"cut":false,"hidden":false,"merged":[[17,3,17,6],[18,3,18,6],[9,2,11,6],[12,3,12,6],[13,3,13,6],[14,3,14,6],[15,3,15,6],[16,3,16,6]]}
["発注研究グループ・チーム名"]
["技術推進本部　先端技術",null,1,"実施できた","実施する","あり","反映されている","土木系建設コンサルタント業務","・"]
["技術推進本部　実装技術",null,2,"どちらかというと実施できた","対象外","なし","反映されていない","測量業務"]
["地質・地盤研究グループ　土質・振動",null,3,"どちらかというと実施できなかった",null,null,null,"地質・土質調査業務"]
["地質・地盤研究グループ　施工技術",null,4,"全く実施できなかった",null,null,null,"発注者支援業務等"]
["流域水環境研究グループ　流域生態",null,5,"対象外"]
["流域水環境研究グループ　水質",null,6]
["流域水環境研究グループ　自然共生研究センター"]
["河道保全研究グループ　水工"]
["河道保全研究グループ　河道監視・水文",null,"業務の実施にあたって、発注者が受注者に作業依頼を行う場合においては、作業内容に応じた適正な期間を設けることとするほか、以下の①～⑤の項目について原則実施するものとする。また、その他の項目についても積極的に取り組む。"]
["土砂管理研究グループ　火山・土石流"]
["土砂管理研究グループ　地すべり"]
["土砂管理研究グループ　雪崩・地すべり研究センター",null,"①","月曜日を依頼の期限日としない（マンデー・ノーピリオド）"]
["道路技術研究グループ　舗装",null,"②","水曜日は定時の帰宅に心掛ける（ウェンズデー・ホーム）"]
["道路技術研究グループ　トンネル",null,"③","土・日曜に休暇が取れるように金曜日には依頼しない（フライデー・ノーリクエスト）"]
["水災害・リスクマネジメント国際センター（ICHARM）　水災害研究グループ",null,"④","昼休みや午後5時以降の打合せをしない（ランチタイム・オーバーファイブ・ノーミーティング）"]
["構造物メンテナンス研究センター（CAESAR）　橋梁構造研究グループ",null,"⑤","定時間際、定時後の依頼、打合せをしない（イブニング・ノーリクエスト）"]
["先端材料資源研究センター（iMaRRC）　材料資源研究グループ",null,"⑥","金曜日も定時の帰宅を心掛ける"]
["企画部　研究企画課",null,"⑦","その他、任意で設定する取組"]
["企画部　業務課"]